fUSD/lending_fUSD_20250930
["ID","MTS","AMOUNT","RATE_DAILY","PERIOD"]
[388616448,1759257042908,-168.0,0.00019141,2]
[388616450,1759257042917,-168.0,0.00019163,2]
[388616451,1759257042927,-2000.0,0.00019164,2]
[388616453,1759257042936,-1000.0,0.00019178,2]
[388616455,1759257042946,-151.0,0.00019178,2]
[388616457,1759257042955,-150.0,0.00019178,2]
[388616459,1759257042966,-1372.17,0.00019217,2]
[388616461,1759257042980,-153.72761504,0.00019228,2]
[388616462,1759257042991,-150.0,0.00019228,2]
[388616463,1759257043002,-500.0,0.00019228,2]
[388616464,1759257043012,-150.0,0.00019228,2]
[388616465,1759257043022,-451.0,0.00019228,2]
[388616466,1759257043034,-500.0,0.00019228,2]
[388616467,1759257043044,-500.0,0.00019228,2]
[388616468,1759257043056,-301.87235773,0.00019228,2]
[388616469,1759257043066,-1800.0,0.00019228,2]
[388616470,1759257043075,-176.0,0.00019239,2]
[388616471,1759257043085,-1000.0,0.00019248,2]
[388616472,1759257043096,-1000.0,0.00019273,2]
[388616473,1759257043106,-170.96426968,0.000193,2]
[388616474,1759257043116,-1069.64894294,0.00019303,2]
[388616475,1759257043125,-176.0,0.00019305,2]
[388616476,1759257043134,-185.88,0.00019323,2]
[388616477,1759257043143,-257.04727786,0.00019327,5]
[388616478,1759257043153,-210.36570033,0.00019327,5]
[388616479,1759257043162,-150.0,0.00019327,2]
[388616480,1759257043171,-1031.0,0.00019327,5]
[388616481,1759257043180,-500.0,0.00019327,5]
[388616482,1759257043190,-150.0,0.00019327,5]
[388616483,1759257043200,-176.0,0.00019357,2]
[388616484,1759257043210,-500.0,0.00019373,2]
[388616485,1759257043220,-508.31422343,0.00019373,2]
[388616486,1759257043229,-165.21137758,0.00019373,2]
[388616487,1759257043240,-500.0,0.00019373,2]
[388616488,1759257043249,-300.0,0.00019399,2]
[388616489,1759257043259,-300.0,0.00019399,2]
[388616490,1759257043268,-894133.35916629,0.000194,3]
[388616491,1759257043277,-474.52590314,0.000194,3]
[388616492,1759257043287,-212.510041,0.000194,2]
[388616493,1759257043296,-212.510041,0.000194,2]
[388616494,1759257043306,-212.510041,0.000194,2]
[388616495,1759257043315,-212.510041,0.000194,2]
[388616496,1759257043324,-256.635006,0.000194,2]
[388616497,1759257043334,-256.635006,0.000194,2]
[388616498,1759257043344,-151.0,0.000194,2]
[388616499,1759257043353,-256.635006,0.000194,2]
[388616500,1759257043363,-584.803838,0.000194,2]
[388616501,1759257043372,-891.34036,0.000194,2]
[388616502,1759257043382,-256.635006,0.000194,2]
[388616503,1759257043394,-584.803838,0.000194,2]
[388616504,1759257043405,-891.34036,0.000194,2]
[388616505,1759257043416,-584.803838,0.000194,2]
[388616506,1759257043427,-891.34036,0.000194,2]
[388616507,1759257043436,-8659.756977,0.000194,2]
[388616508,1759257043447,-584.803838,0.000194,2]
[388616509,1759257043457,-891.34036,0.000194,2]
[388616510,1759257043471,-8659.756977,0.000194,2]
[388616511,1759257043481,-8659.756977,0.000194,2]
[388616512,1759257043491,-8659.756977,0.000194,2]
[388616513,1759257043501,-601.363984,0.000194,2]
[388616514,1759257043511,-151.0,0.000194,2]
[388616515,1759257043522,-601.363984,0.000194,2]
[388616516,1759257043533,-151.0,0.000194,2]
[388616517,1759257043543,-151.0,0.000194,2]
[388616518,1759257043553,-601.363984,0.000194,2]
[388616519,1759257043564,-151.0,0.000194,2]
[388616520,1759257043573,-601.363984,0.000194,2]
[388616521,1759257043584,-151.0,0.000194,2]
[388616522,1759257043595,-151.0,0.000194,2]
[388616523,1759257043605,-151.0,0.000194,2]
[388616524,1759257043615,-261.013117,0.000194,2]
[388616525,1759257043626,-151.0,0.000194,2]
[388616526,1759257043636,-261.013117,0.000194,2]
[388616527,1759257043646,-261.013117,0.000194,2]
[388616528,1759257043655,-151.0,0.000194,2]
[388616530,1759257043665,-261.013117,0.000194,2]
[388616531,1759257043675,-151.0,0.000194,2]
[388616532,1759257043684,-615.782642,0.000194,2]
[388616533,1759257043693,-615.782642,0.000194,2]
[388616534,1759257043703,-615.782642,0.000194,2]
[388616535,1759257043716,-615.782642,0.000194,2]
[388616536,1759257043727,-879.490278,0.000194,2]
[388616537,1759257043736,-276.031736,0.000194,2]
[388616538,1759257043747,-879.490278,0.000194,2]
[388616539,1759257043757,-151.0,0.000194,2]
[388616540,1759257043767,-2920.779795,0.000194,2]
[388616541,1759257043778,-151.0,0.000194,2]
[388616542,1759257043788,-879.490278,0.000194,2]
[388616543,1759257043798,-276.031736,0.000194,2]
[388616544,1759257043808,-151.0,0.000194,2]
[388616557,1759257044190,-151.0,0.000194,2]
[388616558,1759257044201,-2920.779795,0.000194,2]
[388616559,1759257044211,-151.0,0.000194,2]
[388616560,1759257044221,-879.490278,0.000194,2]
[388616561,1759257044231,-276.031736,0.000194,2]
[388616562,1759257044241,-151.0,0.000194,2]
[388616563,1759257044250,-151.0,0.000194,2]
[388616564,1759257044259,-2920.779795,0.000194,2]
[388616565,1759257044269,-151.0,0.000194,2]
[388616566,1759257044278,-276.031736,0.000194,2]
[388616567,1759257044288,-151.0,0.000194,2]
[388616568,1759257044298,-151.0,0.000194,2]
[388616569,1759257044308,-2920.779795,0.000194,2]
[388616570,1759257044318,-151.0,0.000194,2]
[388616571,1759257044327,-151.0,0.000194,2]
[388616572,1759257044335,-151.0,0.000194,2]
[388616573,1759257044344,-151.0,0.000194,2]
[388616574,1759257044353,-592.376206,0.000194,2]
[388616575,1759257044362,-260.349647,0.000194,2]
[388616576,1759257044371,-850.279928,0.000194,2]
[388616577,1759257044381,-151.0,0.000194,2]
[388616578,1759257044390,-260.349647,0.000194,2]
[388616579,1759257044399,-592.376206,0.000194,2]
[388616580,1759257044408,-499.500579,0.000194,2]
[388616581,1759257044417,-850.279928,0.000194,2]
[388616582,1759257044426,-260.349647,0.000194,2]
[388616583,1759257044435,-592.376206,0.000194,2]
[388616584,1759257044444,-499.500579,0.000194,2]
[388616585,1759257044453,-850.279928,0.000194,2]
[388616586,1759257044462,-938.242009,0.000194,2]
[388616587,1759257044471,-592.376206,0.000194,2]
[388616588,1759257044480,-260.349647,0.000194,2]
[388616589,1759257044488,-499.500579,0.000194,2]
[388616590,1759257044498,-151.0,0.000194,2]
[388616591,1759257044506,-850.279928,0.000194,2]
[388616592,1759257044515,-938.242009,0.000194,2]
[388616593,1759257044524,-499.500579,0.000194,2]
[388616594,1759257044534,-938.242009,0.000194,2]
[388616595,1759257044543,-938.242009,0.000194,2]
[388616596,1759257044552,-151.0,0.000194,2]
[388616597,1759257044561,-151.0,0.000194,2]
[388616598,1759257044570,-151.0,0.000194,2]
[388616599,1759257044579,-216.685386,0.000194,2]
[388616600,1759257044588,-151.0,0.000194,2]
[388616601,1759257044597,-216.685386,0.000194,2]
[388616602,1759257044609,-216.685386,0.000194,2]
[388616603,1759257044619,-216.685386,0.000194,2]
[388616604,1759257044630,-151.0,0.000194,2]
[388616605,1759257044641,-153.81248,0.000194,2]
[388616606,1759257044650,-169.152481,0.000194,2]
[388616607,1759257044660,-151.0,0.000194,2]
[388616608,1759257044669,-151.0,0.000194,2]
[388616609,1759257044679,-151.0,0.000194,2]
[388616610,1759257044690,-1027.578098,0.000194,2]
[388616611,1759257044700,-1027.578098,0.000194,2]
[388616612,1759257044711,-168.508267,0.000194,2]
[388616613,1759257044720,-1027.578098,0.000194,2]
[388616614,1759257044728,-168.508267,0.000194,2]
[388616615,1759257044738,-2461.490033,0.000194,2]
[388616616,1759257044747,-1027.578098,0.000194,2]
[388616617,1759257044756,-168.508267,0.000194,2]
[388616618,1759257044765,-2461.490033,0.000194,2]
[388616619,1759257044774,-887.132333,0.000194,2]
[388616620,1759257044783,-168.508267,0.000194,2]
[388616621,1759257044793,-2461.490033,0.000194,2]
[388616622,1759257044802,-887.132333,0.000194,2]
[388616623,1759257044811,-2461.490033,0.000194,2]
[388616624,1759257044820,-887.132333,0.000194,2]
[388616625,1759257044829,-3595.463971,0.000194,2]
[388616626,1759257044839,-151.0,0.000194,2]
[388616627,1759257044847,-887.132333,0.000194,2]
[388616628,1759257044857,-151.0,0.000194,2]
[388616629,1759257044866,-3595.463971,0.000194,2]
[388616630,1759257044875,-151.0,0.000194,2]
[388616631,1759257044885,-151.0,0.000194,2]
[388616632,1759257044894,-689.859637,0.000194,2]
[388616633,1759257044904,-3595.463971,0.000194,2]
[388616634,1759257044913,-523.619798,0.000194,2]
[388616635,1759257044922,-151.0,0.000194,2]
[388616636,1759257044931,-151.0,0.000194,2]
[388616637,1759257044941,-689.859637,0.000194,2]
[388616638,1759257044950,-3595.463971,0.000194,2]
[388616639,1759257044961,-151.0,0.000194,2]
[388616640,1759257044971,-523.619798,0.000194,2]
[388616641,1759257044983,-689.859637,0.000194,2]
[388616642,1759257044994,-151.0,0.000194,2]
[388616643,1759257045003,-523.619798,0.000194,2]
[388616644,1759257045013,-151.0,0.000194,2]
[388616645,1759257045023,-689.859637,0.000194,2]
[388616646,1759257045032,-523.619798,0.000194,2]
[388616647,1759257045041,-151.0,0.000194,2]
[388616648,1759257045050,-151.0,0.000194,2]
[388616649,1759257045060,-151.0,0.000194,2]
[388616650,1759257045070,-151.0,0.000194,2]
[388616651,1759257045079,-424.516369,0.000194,2]
[388616652,1759257045088,-151.0,0.000194,2]
[388616653,1759257045097,-151.0,0.000194,2]
[388616654,1759257045107,-424.516369,0.000194,2]
[388616655,1759257045117,-176.0,0.00019466,2]
[388616656,1759257045127,-1372.17,0.00019491,2]
[388616657,1759257045137,-207307.78808335,0.000195,2]
[388616660,1759257045894,-424.516369,0.000194,2]
[388616661,1759257045904,-764.67111126,0.000195,2]
[388616662,1759257045944,-438.12951133,0.000195,2]
[388616663,1759257045956,-1702.8,0.000195,2]
[388616674,1759257048019,-300.0,0.000194,2]
[388616675,1759257048132,-124.516369,0.000194,2]
[388616676,1759257048141,-367.54519398,0.000195,2]
[388616677,1759257048151,-6241.42273866,0.000195,2]
[388616678,1759257048162,-1202.15,0.000195,2]
[388616679,1759257048174,-3139.55205029,0.000195,2]
[388616680,1759257048205,-26049.7237288,0.000195,2]
[388616681,1759257048216,-661.709808,0.000195,2]
[388616682,1759257050217,-586.934186,0.000194,2]
[388616683,1759257050228,-174.821712,0.000194,2]
[388616684,1759257050240,-586.934186,0.000194,2]
[388616685,1759257050250,-151.0,0.000194,2]
[388616686,1759257050261,-434.62792624,0.000195,2]
[388616687,1759257051018,-50812.63954634,0.000195,2]
[388616688,1759257051163,-503.01904747,0.000195,2]
[388616689,1759257051175,-276.12866054,0.000195,2]
[388616690,1759257051186,-759.48136825,0.000195,2]
[388616692,1759257521568,170.29,9.082e-05,2]
[388616693,1759257521850,170.29,0.00013623,2]
[388616694,1759257609205,60000.0,0.00030137,120]
[388616698,1759257739201,309.07,0.00024907,120]
[388616699,1759257739581,309.07,0.00027171,120]
[388616702,1759257993175,-305.96446361,0.00016998,2]
[388616703,1759257993195,-195.0,0.00017129,2]
[388616704,1759257993216,-151.575418,0.0001726,2]
[388616705,1759257993237,-2532.81328099,0.00017363,2]
[388616706,1759257993258,-1137.9104674,0.00017363,2]
[388616707,1759257993283,-471.241446,0.00017366,2]
[388616753,1759258233623,-684.12452976,0.00016908,2]
[388616754,1759258233646,-315.87547024,0.00017259,2]
[388616755,1759258233789,-884.12452976,0.00017259,2]
[388616756,1759258233807,-300.0,0.00017259,2]
[388616757,1759258233816,-2876.804385,0.0001726,2]
[388616758,1759258233826,-156.418437,0.0001726,2]
[388616759,1759258233840,-2680.397065,0.0001726,2]
[388616760,1759258233852,-1242.774202,0.0001726,2]
[388616761,1759258233861,-25809.09307419,0.00017366,2]
[388616762,1759258233870,-1330.07063571,0.00017367,2]
[388616763,1759258233880,-646.57297509,0.00017368,2]
[388616764,1759258233889,-2532.81328099,0.00017378,2]
[388616765,1759258233898,-20369.23490213,0.00017378,2]
[388616766,1759258233907,-1330.07063571,0.00017379,2]
[388616767,1759258233916,-2969.18426555,0.00017379,2]
[388616768,1759258233925,-546.09549533,0.00017384,2]
[388616769,1759258233935,-1997.33256948,0.00017386,2]
[388616770,1759258233944,-1997.33256948,0.00017387,2]
[388616771,1759258233953,-11283.12987346,0.0001739,2]
[388616772,1759258233962,-11283.12987346,0.00017397,2]
[388616773,1759258233971,-546.09549533,0.00017397,2]
[388616774,1759258233980,-546.09549533,0.00017399,2]
[388616775,1759258233989,-26280.33452019,0.00017406,2]
[388616776,1759258233998,-1330.07063571,0.00017407,2]
[388616777,1759258234008,-2532.81328099,0.00017411,2]
[388616778,1759258234018,-546.09549533,0.00017413,2]
[388616779,1759258234027,-646.57297509,0.00017413,2]
[388616780,1759258234036,-630.4728428,0.00017414,2]
[388616781,1759258234045,-1137.9104674,0.00017414,2]
[388616782,1759258234055,-646.57297509,0.00017416,2]
[388616783,1759258234063,-630.4728428,0.00017419,2]
[388616784,1759258234073,-252.74052824,0.00017423,2]
[388616785,1759258234082,-2532.81328099,0.00017426,2]
[388616786,1759258234091,-252.74052824,0.00017429,2]
[388616787,1759258234100,-646.57297509,0.0001743,2]
[388616788,1759258234109,-11283.12987346,0.00017431,2]
[388616789,1759258234118,-1997.33256948,0.00017433,2]
[388616790,1759258234127,-1330.07063571,0.00017434,2]
[388616791,1759258234136,-1997.33256948,0.00017436,2]
[388616792,1759258234145,-11283.12987346,0.00017436,2]
[388616793,1759258234154,-252.74052824,0.00017442,2]
[388616794,1759258234163,-26280.33452019,0.00017443,2]
[388616795,1759258234172,-11283.12987346,0.00017444,2]
[388616796,1759258234181,-1137.9104674,0.00017449,2]
[388616797,1759258234190,-20369.23490213,0.00017449,2]
[388616798,1759258234199,-2969.18426555,0.00017454,2]
[388616799,1759258234208,-630.4728428,0.00017457,2]
[388616800,1759258234217,-2969.18426555,0.00017458,2]
[388616801,1759258234226,-252.74052824,0.00017459,2]
[388616802,1759258234235,-1137.9104674,0.0001746,2]
[388616803,1759258234245,-19902.04517151,0.00017467,2]
[388616804,1759258234327,-6378.28934868,0.00017467,2]
[388616805,1759258234336,-630.4728428,0.00017468,2]
[388616806,1759258234346,-546.09549533,0.00017471,2]
[388616807,1759258234355,-252.74052824,0.00017472,2]
[388616808,1759258234365,-2969.18426555,0.00017473,2]
[388616809,1759258234374,-2969.18426555,0.0001748,2]
[388616810,1759258234384,-2532.81328099,0.0001748,2]
[388616811,1759258234394,-1137.9104674,0.00017481,2]
[388616812,1759258234404,-20369.23490213,0.00017482,2]
[388616813,1759258234413,-1330.07063571,0.00017484,2]
[388616814,1759258234423,-26280.33452019,0.00017484,2]
[388616815,1759258234433,-1997.33256948,0.00017485,2]
[388616816,1759258234442,-630.4728428,0.00017493,2]
[388616817,1759258234452,-20369.23490213,0.00017495,2]
[388616818,1759258234461,-646.57297509,0.00017495,2]
[388616819,1759258234470,-9407.19671575,0.000175,2]
[388616820,1759258234512,-598.699518,0.000175,2]
[388616821,1759258234555,-4633.82204062,0.000175,2]
[388616822,1759258234566,-294.46137287,0.000175,2]
[388616879,1759258239502,-5435.05525489,0.000175,2]
[388616880,1759258239511,-601.72,0.00017919,2]
[388616881,1759258239522,-666.0,0.00017986,3]
[388616882,1759258239531,-756.63,0.00017998,2]
[388616883,1759258239540,-180.11,0.00018035,2]
[388616884,1759258239549,-458.16,0.00018088,2]
[388616885,1759258239558,-309.07,0.00018114,2]
[388616886,1759258239567,-200.0,0.00018137,2]
[388616887,1759258239576,-200.0,0.00018137,2]
[388616888,1759258239585,-207.4,0.00018137,2]
[388616889,1759258239595,-151.0,0.00018137,2]
[388616890,1759258239604,-151.0,0.00018137,2]
[388616891,1759258239613,-151.0,0.00018137,2]
[388616892,1759258239622,-151.0,0.00018137,2]
[388616893,1759258239631,-151.0,0.00018137,2]
[388616894,1759258239640,-151.0,0.00018137,2]
[388616895,1759258239649,-151.0,0.00018137,2]
[388616896,1759258239657,-151.0,0.00018137,2]
[388616897,1759258239666,-524.63999574,0.00018137,2]
[388616898,1759258239675,-151.0,0.00018137,2]
[388616899,1759258239684,-151.0,0.00018137,2]
[388616900,1759258239693,-151.0,0.00018137,2]
[388616901,1759258239702,-151.0,0.00018137,2]
[388616902,1759258239711,-151.0,0.00018137,2]
[388616903,1759258239719,-151.0,0.00018137,2]
[388616904,1759258239728,-151.0,0.00018137,2]
[388616905,1759258239737,-151.0,0.00018137,2]
[388616906,1759258239746,-151.0,0.00018137,2]
[388616907,1759258239755,-151.0,0.00018137,2]
[388616908,1759258239765,-151.0,0.00018137,2]
[388616909,1759258239775,-151.0,0.00018137,2]
[388616910,1759258239783,-163.29895366,0.00018137,2]
[388616911,1759258239792,-20785.17158751,0.00018148,2]
[388616912,1759258239888,-969.71382093,0.00018148,2]
[388616913,1759258239899,-29744.67459156,0.00018148,2]
[388616914,1759258239908,-1000.0,0.00018153,2]
[388616915,1759258239917,-170.29,0.00018164,2]
[388616916,1759258239927,-500.0,0.000182,2]
[388616917,1759258239936,-578.20924308,0.00018222,2]
[388616918,1759258239945,-7965.41053268,0.00018222,2]
[388616919,1759258239954,-1000.0,0.00018222,2]
[388616920,1759258239963,-1000.0,0.00018222,2]
[388616921,1759258239972,-160.0,0.00018222,2]
[388616922,1759258239982,-231.28369723,0.00018222,2]
[388616923,1759258239991,-151.0,0.00018222,2]
[388616924,1759258240000,-601.3376128,0.00018222,2]
[388616925,1759258240010,-2901.75060062,0.00018277,2]
[388616926,1759258240021,-646.64,0.00018292,2]
[388616927,1759258240030,-156.75,0.000183,2]
[388616928,1759258240039,-401.21,0.00018321,2]
[388616929,1759258240048,-152.0,0.000184,2]
[388616930,1759258240057,-174.29,0.00018454,2]
[388616931,1759258240067,-300.0,0.00018499,2]
[388616932,1759258240076,-300.0,0.00018499,2]
[388616933,1759258240085,-300.0,0.00018499,2]
[388616934,1759258240094,-666.0,0.00018499,2]
[388616935,1759258240103,-300.0,0.00018499,2]
[388616936,1759258240112,-875.65095137,0.00018534,2]
[388616937,1759258240121,-1635.4372,0.0001857,2]
[388616938,1759258240130,-158.70791074,0.00018599,2]
[388616939,1759258240140,-1944.56708195,0.00018599,2]
[388616940,1759258240149,-292.64,0.0001863,2]
[388616941,1759258240159,-1260.66,0.00018668,2]
[388616942,1759258240169,-200.0,0.00018685,2]
[388616943,1759258240179,-195.0,0.00018698,2]
[388616944,1759258240189,-875.65095137,0.00018709,2]
[388616945,1759258240199,-595.30953576,0.00018748,2]
[388616946,1759258240208,-5888.0,0.00018765,2]
[388616947,1759258240219,-420.0,0.00018846,2]
[388616948,1759258240231,-1000.0,0.000189,2]
[388616949,1759258240243,-1680.0,0.00018939,2]
[388616950,1759258240252,-1260.66,0.00018942,2]
[388616951,1759258240262,-1800.0,0.00019,3]
[388616952,1759258240273,-875.65095137,0.00019022,2]
[388616953,1759258240282,-473.55,0.00019041,2]
[388616954,1759258240291,-473.55,0.00019041,2]
[388616955,1759258240300,-473.55,0.00019041,2]
[388616956,1759258240309,-472.78,0.00019041,2]
[388616957,1759258240324,-151.0,0.00019178,2]
[388616958,1759258240335,-1000.0,0.000192,2]
[388616959,1759258240344,-1000.0,0.000192,2]
[388616960,1759258240353,-875.65095137,0.00019209,2]
[388616961,1759258240363,-156.75,0.00019215,2]
[388616962,1759258240372,-1260.66,0.00019216,2]
[388616963,1759258240381,-166.74,0.0001922,2]
[388616964,1759258240391,-192.0,0.00019227,2]
[388616965,1759258240400,-151.575418,0.00019232,2]
[388616966,1759258240409,-2876.804385,0.00019232,2]
[388616967,1759258240418,-156.418437,0.00019232,2]
[388616968,1759258240427,-2680.397065,0.00019232,2]
[388616969,1759258240436,-1242.774202,0.00019232,2]
[388616970,1759258240445,-5888.0,0.00019247,2]
[388616971,1759258240454,-427.3815,0.00019288,2]
[388616972,1759258240463,-802.23670721,0.00019303,2]
[388616973,1759258240472,-5888.0,0.0001935,2]
[388616974,1759258240482,-3639.754,0.00019357,2]
[388616975,1759258240491,-340.0549,0.0001937,2]
[388616976,1759258240501,-192.0,0.00019378,2]
[388616977,1759258240510,-578.69467519,0.00019394,2]
[388616978,1759258240520,-500.0,0.00019394,2]
[388616979,1759258240529,-490.0,0.00019394,2]
[388616980,1759258240539,-500.0,0.00019394,2]
[388616981,1759258240548,-250.0,0.00019394,2]
[388616982,1759258240557,-902.0,0.00019394,2]
[388616983,1759258240566,-151.97366281,0.00019394,2]
[388616984,1759258240575,-150.0,0.00019394,2]
[388616985,1759258240584,-150.0,0.00019394,2]
[388616986,1759258240593,-500.0,0.00019394,2]
[388616987,1759258240603,-300.0,0.00019399,2]
[388616988,1759258240612,-300.0,0.00019399,2]
[388616989,1759258240621,-306.42167078,0.00019399,2]
[388616990,1759258240630,-28000.0,0.000194,4]
[388616991,1759258240640,-3233.75458858,0.000194,2]
[388616992,1759258240649,-1000.0,0.000194,2]
[388616993,1759258240658,-2500.0,0.000194,2]
[388616994,1759258240667,-192.0,0.00019435,2]
[388616995,1759258240677,-12176.0120474,0.00019464,2]
[388616996,1759258240685,-150.0,0.00019488,2]
[388616997,1759258240695,-150.0,0.00019488,2]
[388616998,1759258240704,-150.0,0.00019488,2]
[388616999,1759258240713,-150.0,0.00019488,2]
[388617000,1759258240722,-150.0,0.00019488,2]
[388617001,1759258240731,-150.0,0.00019488,2]
[388617002,1759258240740,-150.0,0.00019488,2]
[388617003,1759258240749,-216.49252146,0.00019488,2]
[388617004,1759258240758,-150.0,0.00019488,2]
[388617005,1759258240768,-150.41623405,0.00019488,2]
[388617006,1759258240777,-150.0,0.00019488,2]
[388617007,1759258240786,-150.0,0.00019488,2]
[388617008,1759258240796,-150.0,0.00019488,2]
[388617009,1759258240805,-150.0,0.0001949,5]
[388617010,1759258240814,-1260.66,0.0001949,2]
[388617011,1759258241162,-556.24185271,0.00019493,2]
[388617012,1759258241172,-47984.5013992,0.00019494,2]
[388617013,1759258241181,-6700.2244889,0.00019494,2]
[388617014,1759258241191,-300.0,0.00019499,2]
[388617015,1759258241200,-349.46229014,0.00019499,2]
[388617016,1759258241209,-44136.48200722,0.000195,2]
[388617017,1759258241219,-1245.0,0.000195,2]
[388617018,1759258241229,-151.0,0.000195,2]
[388617019,1759258241238,-197.63994475,0.000195,2]
[388617020,1759258241248,-3350.5338,0.000195,2]
[388617021,1759258241257,-176.11,0.00019512,2]
[388617022,1759258241267,-200.0,0.00019542,2]
[388617023,1759258241277,-150.0,0.0001958,2]
[388617024,1759258241286,-160.0,0.00019591,2]
[388617025,1759258241295,-239.84119403,0.00019591,2]
[388617026,1759258241304,-1000.0,0.0001966,2]
[388617027,1759258241318,-500.0,0.00019668,2]
[388617028,1759258241335,-490.0,0.00019668,2]
[388617029,1759258241345,-500.0,0.00019668,2]
[388617030,1759258241355,-902.0,0.00019668,2]
[388617031,1759258241365,-150.0,0.00019668,2]
[388617032,1759258241376,-201.51253888,0.00019668,2]
[388617033,1759258241385,-500.0,0.00019668,2]
[388617034,1759258241395,-1000.0,0.00019668,2]
[388617035,1759258241406,-8916.97728489,0.0001969,2]
[388617036,1759258241415,-3350.53381,0.000197,2]
[388617037,1759258241424,-787.0,0.00019718,2]
[388617038,1759258241434,-1264.0,0.00019718,2]
[388617039,1759258241444,-2044.0,0.00019718,2]
[388617040,1759258241453,-3398.0,0.00019718,2]
[388617041,1759258241462,-570.0,0.00019718,2]
[388617042,1759258241471,-1584.0,0.00019718,2]
[388617043,1759258241481,-1306.0,0.00019718,2]
[388617044,1759258241490,-603.0,0.00019718,2]
[388617045,1759258241499,-814.0,0.00019718,2]
[388617046,1759258241508,-6233.0,0.00019718,2]
[388617047,1759258241518,-4113.0,0.00019718,2]
[388617048,1759258241528,-621.0,0.00019718,2]
[388617049,1759258241537,-18919.0,0.00019718,2]
[388617050,1759258241546,-36270.424,0.0001972,2]
[388617051,1759258241555,-300.0,0.00019725,2]
[388617052,1759258241564,-385540.14,0.00019726,2]
[388617053,1759258241573,-156.587,0.00019726,2]
[388617054,1759258241583,-474.52590314,0.00019737,2]
[388617055,1759258241592,-200.0,0.0001974,2]
[388617056,1759258241602,-151.88,0.00019748,2]
[388617057,1759258241611,-150.33,0.00019748,2]
[388617058,1759258241620,-150.0,0.00019762,2]
[388617059,1759258241629,-150.0,0.00019762,2]
[388617060,1759258241638,-150.0,0.00019762,2]
[388617061,1759258241648,-150.90482326,0.00019762,2]
[388617062,1759258241658,-150.0,0.00019762,2]
[388617063,1759258241667,-152.75692236,0.00019762,2]
[388617064,1759258241676,-150.0,0.00019762,2]
[388617065,1759258241685,-1260.66,0.00019764,2]
[388617066,1759258241695,-176.0,0.00019769,2]
[388617067,1759258241704,-547.20922059,0.00019773,2]
[388617068,1759258241713,-490.72846195,0.00019773,2]
[388617069,1759258241722,-500.0,0.00019773,2]
[388617070,1759258241731,-500.0,0.00019773,2]
[388617071,1759258241740,-500.77160543,0.00019773,2]
[388617072,1759258241750,-500.0,0.00019773,2]
[388617073,1759258241760,-500.0,0.00019773,2]
[388617074,1759258241770,-500.0,0.00019773,2]
[388617075,1759258241779,-501.25175707,0.00019773,2]
[388617076,1759258241788,-500.0,0.00019773,2]
[388617077,1759258241798,-500.0,0.00019773,2]
[388617078,1759258241807,-150.0,0.00019773,2]
[388617079,1759258241816,-500.0,0.00019773,2]
[388617080,1759258241826,-209.3592731,0.00019773,2]
[388617081,1759258241835,-500.0,0.00019773,2]
[388617082,1759258241846,-192.0,0.00019784,2]
[388617083,1759258241856,-1000.0,0.00019799,2]
[388617084,1759258241865,-30224.74378516,0.000198,2]
[388617085,1759258241874,-5000.0,0.000198,2]